[Event "SixDays Budapest March IM 2023"]
[Site "Budapest"]
[Date "2023.03.27"]
[Round "6.2"]
[White "Halak, Miklos"]
[Black "Ulasevich, Sergei"]
[Result "1/2-1/2"]
[ECO "A45"]
[WhiteElo "2257"]
[BlackElo "2236"]
[Annotator "TA"]
[PlyCount "99"]
[EventDate "2023.03.24"]
[EventType "tourn"]
[EventCountry "HUN"]
[SourceTitle "playchess.com"]
[Source "ChessBase"]
[SourceQuality "1"]
[TimeControl "5400+30"]

{[%evp 9,99,0,0,0,0,0,0,0,0,0,0,0,49,46,36,50,82,85,73,-15,-21,-9,-10,-9,0,-2,-2,-45,-31,-63,-48,-46,-46,-44,-24,-36,-32,-30,-14,-17,-11,-16,-14,-11,-11,-11,0,-15,0,-15,0,0,0,0,0,0,0,0,0,0,0,0,0,-15,0,-6,0,0,0,0,0,-39,-39,-41,-4,-8,0,0,0,0,0,0,0,0,0,0,0,0,0,0,0,0]} 1. d4 {[%emt 0:09:32]} Nf6 {[%emt 0:00:38]} 2. Nc3 {[%emt 0:00:05]} d5 {[%emt 0:00:07]} 3. Bf4 {[%emt 0:00:32]} c5 {[%emt 0:00:28]} 4. e4 {[%emt 0:00:08]} a6 {[%emt 0:15:03] [#]} 5. dxc5 $146 {[%emt 0:03:03]} ({Predecessor:} 5. e5 cxd4 6. Qxd4 Nc6 7. Qd3 Qc7 8. Nf3 e6 9. h3 Nd7 10. O-O-O Nc5 11. Qe3 Qa5 {1-0 Liyanage,R (2331)-Czerw,D (2373) Speed Chess Q1 blitz 2022 (7)}) 5... d4 $1 {[%emt 0:00:43]} 6. Na4 {[%emt 0:02:16] [#] Threatens to win with Nb6. D00: 1 d4 d5: Unusual lines.} Qa5+ {[%emt 0:00:35]} 7. c3 {[%emt 0:00:10]} dxc3 {[%emt 0:00:08]} 8. Nxc3 {[%emt 0:08:56]} Nxe4 {[%emt 0:06:53]} 9. Qa4+ {[%emt 0:00:23]} ({Reject} 9. Bc7 Qxc7 10. Nxe4 Bf5 $17) 9... Qxa4 {[%emt 0:00:08]} 10. Nxa4 {[%emt 0:00:04] [#] aiming for Nb6.} Nd7 {[%emt 0:00:47]} (10... e5 $11 {is more appropriate.} 11. Be3 Nc6) 11. Rc1 $14 {[%emt 0:01:00]} e5 {[%emt 0:15:37]} 12. Be3 {[%emt 0:02:39]} b5 {[%emt 0:01:12]} 13. cxb6 {[%emt 0:05:55]} Bb4+ {[%emt 0:00:02]} 14. Nc3 {[%emt 0:01:51]} (14. Kd1 $16 {Rc4 would be deadly.} Ndf6 15. Rc4) 14... Nxc3 $11 {[%emt 0:03:37]} 15. bxc3 {[%emt 0:02:46]} Ba5 {[%emt 0:00:07]} 16. Nf3 {[%emt 0:01:53]} f6 {[%emt 0:04:19]} 17. Rb1 {[%emt 0:10:18]} Rb8 {[%emt 0:01:47][%cal Ra5b6]} 18. Rb3 {[%emt 0:04:24]} Bxb6 {[%emt 0:01:42]} 19. Bxb6 {[%emt 0:02:54]} Nxb6 {[%emt 0:00:37]} (19... Rxb6 {simplifies} 20. Rxb6 Nxb6 21. Bd3 Ke7) 20. Bc4 {[%emt 0:00:45] Dodges Be6} Ke7 {[%emt 0:03:04]} 21. O-O {[%emt 0:03:39]} a5 {[%emt 0:06:45]} 22. Rfb1 {[%emt 0:01:15]} Bf5 {[%emt 0:00:08]} 23. R1b2 {[%emt 0:01:31]} Nd7 {[%emt 0:00:20]} 24. Nd2 {[%emt 0:02:24]} Rhc8 {[%emt 0:02:31]} 25. Rxb8 {[%emt 0:04:39]} Rxb8 {[%emt 0:00:12]} 26. Rxb8 {[%emt 0:00:27]} Nxb8 {[%emt 0:00:01][%mdl 4096] Endgame KBN-KBN} 27. Nb3 {[%emt 0:00:08]} Nc6 {[%emt 0:00:35]} 28. Bb5 {[%emt 0:03:12]} Kd6 {[%emt 0:00:54]} 29. Kf1 {[%emt 0:03:09]} Bb1 {[%emt 0:02:03]} 30. Bxc6 {[%emt 0:10:15]} Kxc6 {[%emt 0:00:13]} 31. Nxa5+ {[%emt 0:00:16] KB-KN} Kb5 {[%emt 0:01:24]} 32. Nb7 {[%emt 0:01:51]} Kc6 {[%emt 0:10:32] Against Nd6} 33. Na5+ $1 {[%emt 0:00:42]} Kb6 {[%emt 0:04:17]} 34. Nc4+ {[%emt 0:02:56]} Kc5 {[%emt 0:00:07]} 35. Ne3 {[%emt 0:01:02]} Bxa2 {[%emt 0:00:06]} 36. Ke2 {[%emt 0:00:26]} Bb1 {[%emt 0:00:13]} 37. h4 {[%emt 0:02:12]} h5 {[%emt 0:03:25]} 38. g4 {[%emt 0:04:14]} hxg4 {[%emt 0:01:22]} 39. Nxg4 {[%emt 0:00:08]} Kd5 {[%emt 0:02:58]} 40. Ke3 {[%emt 0:02:10]} f5 {[%emt 0:02:22]} 41. c4+ $1 {[%emt 0:00:39]} Kd6 {[%emt 0:04:39]} (41... Ke6 $5 {[%cal Rf5g4]} 42. Nh2 f4+ 43. Kd2 Be4 $15) 42. Nh2 {[%emt 0:00:55] The position is equal.} Kc5 {[%emt 0:04:15]} 43. f4 {[%emt 0:01:33]} exf4+ {[%emt 0:02:32]} (43... e4 $5 44. Nf1 $8 Bd3 $11) 44. Kxf4 {[%emt 0:00:10]} Kxc4 {[%emt 0:00:00]} 45. Nf1 {[%emt 0:01:12] Hoping for Nd2+.} Kd5 {[%emt 0:00:26]} 46. Ng3 {[%emt 0:00:34]} Ke6 {[%emt 0:00:12]} 47. Kg5 {[%emt 0:00:31]} Ke5 {[%emt 0:00:54]} 48. Nh5 {[%emt 0:00:37]} Bd3 {[%emt 0:02:19]} 49. Nf4 {[%emt 0:01:49]} Bb5 {[%emt 0:00:08]} 50. Nh5 {Weighted Error Value: White=0.09 (flawless) /Black=0.06 (flawless)} 1/2-1/2

[Event "SixDays Budapest March IM 2023"]
[Site "Budapest"]
[Date "2023.03.27"]
[Round "6.3"]
[White "Balogh, Peter"]
[Black "Udvardi, Zalan"]
[Result "0-1"]
[ECO "B33"]
[WhiteElo "2264"]
[BlackElo "2260"]
[Annotator "TA"]
[PlyCount "48"]
[EventDate "2023.03.24"]
[EventType "tourn"]
[EventCountry "HUN"]
[SourceTitle "playchess.com"]
[Source "ChessBase"]
[SourceQuality "1"]
[TimeControl "5400+30"]

{[%evp 27,48,67,78,0,0,-52,-43,-171,-158,-247,-218,-209,-198,-398,-398,-401,-355,-345,-346,-347,-353,-401,-387]} 1. e4 {[%emt 0:08:03]} c5 {[%emt 0:00:45]} 2. Nf3 {[%emt 0:00:17][%cal Bg1f3,Bf3d4,Bd4b5,Bb5a3][%mdl 32]} Nc6 {[%emt 0:00:06]} 3. d4 {[%emt 0:00:13]} cxd4 {[%emt 0:00:08]} 4. Nxd4 {[%emt 0:00:08]} Nf6 {[%emt 0:00:07]} 5. Nc3 {[%emt 0:00:07]} e5 {[%emt 0:00:09]} 6. Ndb5 {[%emt 0:00:21]} d6 {[%emt 0:00:06]} 7. Bg5 {[%emt 0:01:55]} a6 {[%emt 0:00:09]} 8. Na3 {[%emt 0:07:45]} b5 {[%emt 0:00:04]} 9. Bxf6 {[%emt 0:00:49]} gxf6 {[%emt 0:00:06][%cal Bg7f6,Bf6f5,Bf5e4][%mdl 32]} 10. Nd5 {[%emt 0:00:07]} Bg7 {[%emt 0:00:31]} 11. Bd3 {[%emt 0:00:17]} Ne7 {[%emt 0:00:27]} 12. Nxe7 {[%emt 0:02:15]} Qxe7 {[%emt 0:00:08]} 13. c4 {[%emt 0:00:07]} f5 {[%emt 0:00:14]} 14. O-O {[%emt 0:02:53]} O-O {[%emt 0:00:30]} 15. cxb5 {[%emt 0:01:48] 15.Qh5 is becoming the main line. B33: Sicilian: Pelikan and Sveshnikov Variations.} (15. exf5 e4 16. Qe2 Bxf5 17. cxb5 axb5 18. Nxb5 d5 $15) (15. Qh5 $16) 15... d5 $11 {[%emt 0:00:20][%cal Bd6d5,Bd5d4,Bd4d3][%mdl 32]} 16. bxa6 {[%emt 0:16:23]} (16. exf5 e4 17. Be2 Bxb2 18. Qxd5 Bb7 $17) (16. exd5 $11 e4 17. Qe2) 16... fxe4 $15 {[%emt 0:02:54]} (16... dxe4 {simplifies} 17. Bb5 Bxa6 18. Bxa6 Rxa6 19. Qe2 Qb7) 17. Be2 {[%emt 0:10:49] [#]} (17. Bb5 $15) 17... d4 $1 $19 {[%emt 0:03:54] [#]} (17... Bxa6 18. Bxa6 Rxa6 19. Qxd5 $16) 18. Re1 $146 {[%emt 0:05:47] [#]} (18. Bb5 $17) ({Predecessor:} 18. Bc4 Qg5 19. Qe2 Qg6 20. Rfe1 Bxa6 21. Bxa6 Rxa6 22. Nc4 f5 23. a4 d3 24. Qe3 {0-1 Ilchev,P (2160)-Soler di Benedetto,S (2030) Cullera op 26th 2005 (4.32)}) 18... d3 $1 {[%emt 0:01:21]} (18... Bxa6 19. Bxa6 Rxa6 20. Qb3 $17) 19. Bf1 {[%emt 0:02:56]} f5 {[%emt 0:01:23]} (19... Rxa6 20. Rxe4 Rd8 21. Qb3 $17 (21. Bxd3 $2 Rad6 $19)) 20. f3 $2 {[%emt 0:01:00]} (20. Nc4 {was called for.}) 20... Bxa6 {[%emt 0:11:38] Threatens to win with ...exf3.} ({Weaker is} 20... Rxa6 21. fxe4 fxe4 22. Rxe4 $17) 21. fxe4 {[%emt 0:00:22]} Qa7+ {[%emt 0:00:57]} ({But not} 21... fxe4 $2 22. Rxe4 Rad8 23. h3 $19) 22. Kh1 {[%emt 0:00:16]} Qd4 {[%emt 0:00:09][%csl LRb2,LRe4]} 23. Qb3+ {[%emt 0:02:24]} Kh8 {[%emt 0:00:07]} 24. exf5 {[%emt 0:02:00]} e4 {[%emt 0:02:22] White got outplayed after the opening.   Weighted Error Value: White=0.67/Black=0.06 (flawless)} (24... Rxf5 $2 {is the wrong capture.} 25. Nc2 Rxf1+ 26. Rxf1) 0-1

[Event "SixDays Budapest March IM 2023"]
[Site "Budapest"]
[Date "2023.03.27"]
[Round "6.4"]
[White "To, Nhat Minh"]
[Black "Szeberenyi, Adam"]
[Result "1/2-1/2"]
[ECO "A05"]
[WhiteElo "2342"]
[BlackElo "2338"]
[Annotator "TA"]
[PlyCount "33"]
[EventDate "2023.03.24"]
[EventType "tourn"]
[EventCountry "HUN"]
[SourceTitle "playchess.com"]
[Source "ChessBase"]
[SourceQuality "1"]
[TimeControl "5400+30"]

{[%evp 16,17,35,16]} 1. Nf3 {[%emt 0:00:31]} Nf6 {[%emt 0:00:33]} 2. b3 {[%emt 0:00:02]} g6 {[%emt 0:00:06]} 3. Bb2 {[%emt 0:00:01]} Bg7 {[%emt 0:00:04]} 4. e3 {[%emt 0:00:04]} O-O {[%emt 0:00:04]} 5. d4 {[%emt 0:00:02]} d5 {[%emt 0:00:07]} 6. Be2 {[%emt 0:00:03]} c6 {[%emt 0:00:06]} 7. O-O {[%emt 0:00:03]} Bf5 {[%emt 0:00:12]} 8. c4 {[%emt 0:00:02]} Ne4 {[%emt 0:00:11]} 9. Nc3 {[%emt 0:00:04] [#]} {Predecessor:} Nxc3 $146 {A12: English Opening: 1...c6 with b3 by White.} 10. Bxc3 Nd7 11. Rc1 Nf6 12. Nd2 a5 13. Re1 Qb6 14. Bf1 Rfd8 15. c5 Qc7 16. f3 e5 17. dxe5 {0-1 Sokolovsky,Y (2416)-Melkumyan,H (2645) Titled Tuesday intern op 04th Oct Late blitz 2022 (4)} 1/2-1/2

[Event "SixDays Budapest March IM 2023"]
[Site "Budapest"]
[Date "2023.03.27"]
[Round "6.5"]
[White "Horvath, David"]
[Black "Neszmenyi, Zoltan"]
[Result "1/2-1/2"]
[ECO "A06"]
[WhiteElo "2380"]
[BlackElo "1885"]
[Annotator "TA"]
[PlyCount "67"]
[EventDate "2023.03.24"]
[EventType "tourn"]
[EventCountry "HUN"]
[SourceTitle "playchess.com"]
[Source "ChessBase"]
[SourceQuality "1"]
[TimeControl "5400+30"]

{[%evp 9,67,13,29,12,29,24,31,30,28,17,18,16,63,67,81,69,79,60,77,58,62,45,46,43,48,46,48,45,63,41,41,41,46,38,43,45,45,45,85,84,84,73,81,93,91,63,91,91,91,91,91,76,91,68,91,32,19,22,56,56]} 1. Nf3 {[%emt 0:02:01]} d5 {[%emt 0:00:41]} 2. g3 {[%emt 0:00:12]} Nf6 {[%emt 0:00:52]} 3. Bg2 {[%emt 0:00:04]} c6 {[%emt 0:00:51]} 4. O-O {[%emt 0:00:08]} e6 {[%emt 0:00:58]} 5. d3 {[%emt 0:00:24]} Nbd7 {[%emt 0:00:31]} 6. Nbd2 {[%emt 0:00:09] A07: Réti Opening: New York and Capablanca Systems.} Be7 {[%emt 0:01:55]} 7. e4 {[%emt 0:01:15]} O-O {[%emt 0:01:54]} 8. Qe2 {[%emt 0:00:21]} b6 {[%emt 0:01:50]} 9. e5 {[%emt 0:10:19]} Ne8 {[%emt 0:01:56][%cal Bf6e8,Be8g7,Bg7f5][%mdl 32] [#]} 10. Re1 $146 {[%emt 0:00:19]} ({Predecessor:} 10. h4 Nc7 11. h5 Re8 12. h6 g6 13. Re1 c5 14. Nf1 Bb7 15. N1h2 d4 16. Ng4 {1-0 Aldokhin,I (2413)-Wanyama,H (2291) Titled Tuesday intern op 09th Nov blitz 2021 (11)}) 10... g6 {[%emt 0:03:49]} (10... Nc7 $11) 11. Nf1 {[%emt 0:02:58]} Ng7 {[%emt 0:00:55]} 12. Bh6 {[%emt 0:02:51]} Re8 {[%emt 0:03:43]} 13. h4 {[%emt 0:02:18] White is more active.} Nf5 {[%emt 0:01:52]} 14. Bg5 {[%emt 0:00:24]} h6 {[%emt 0:11:50]} 15. Bxe7 {[%emt 0:16:34]} Qxe7 {[%emt 0:00:41]} 16. Ne3 {[%emt 0:10:04]} Bb7 {[%emt 0:03:41]} 17. Nxf5 {[%emt 0:03:35]} exf5 {[%emt 0:01:49]} 18. Qd2 {[%emt 0:03:07]} Kh7 {[%emt 0:05:09]} 19. d4 {[%emt 0:13:19][%cal Oh4h5]} Nf8 {[%emt 0:03:27]} 20. Bf1 {[%emt 0:01:59][%cal Oh4h5,Bg2f1,Bf1d3,Bd3c2][%mdl 32]} Ne6 {[%emt 0:00:45]} 21. Bd3 {[%emt 0:00:40]} a5 {[%emt 0:03:15]} 22. c3 {[%emt 0:04:07][%cal Oh4h5]} Ba6 {[%emt 0:02:27]} 23. Bc2 {[%emt 0:00:53]} b5 {[%emt 0:02:22] [#]} 24. h5 $1 {[%emt 0:01:51]} Ng5 {[%emt 0:04:03]} 25. Nxg5+ {[%emt 0:09:42]} Qxg5 {[%emt 0:02:50]} 26. hxg6+ {[%emt 0:00:04]} fxg6 {[%emt 0:01:01]} 27. Re3 {[%emt 0:00:46]} a4 {[%emt 0:08:11]} 28. f4 {[%emt 0:00:47]} Qe7 {[%emt 0:02:29]} 29. Kf2 {[%emt 0:02:01]} h5 {[%emt 0:02:17]} 30. Ree1 {[%emt 0:00:29]} Kg7 {[%emt 0:00:57]} 31. Rh1 {[%emt 0:00:40]} Bc8 {[%emt 0:02:26]} 32. b3 {[%emt 0:02:50]} (32. a3 $16) 32... axb3 $14 {[%emt 0:06:40]} 33. axb3 {[%emt 0:00:09]} Be6 {[%emt 0:00:49]} 34. b4 {[%emt 0:04:07] Weighted Error Value: White=0.10 (very precise) /Black=0.10 (very precise)} 1/2-1/2

[Event "SixDays Budapest March IM 2023"]
[Site "Budapest"]
[Date "2023.03.28"]
[Round "7.1"]
[White "Neszmenyi, Zoltan"]
[Black "Pham, Tran Gia Phuc"]
[Result "0-1"]
[ECO "A35"]
[WhiteElo "1885"]
[BlackElo "2238"]
[Annotator "TA"]
[PlyCount "90"]
[EventDate "2023.03.24"]
[EventType "tourn"]
[EventCountry "HUN"]
[SourceTitle "playchess.com"]
[Source "ChessBase"]
[SourceQuality "1"]
[TimeControl "5400+30"]

{[%evp 22,90,22,31,10,11,25,14,13,0,-8,-8,-8,-8,0,-162,37,35,84,50,67,64,64,0,0,0,0,-7,-12,-13,-19,-77,0,0,0,-16,-17,-17,-22,-68,0,0,0,0,0,0,0,0,0,0,0,-256,-256,-256,-255,-248,-248,-248,-248,-248,-248,-241,-241,-241,-226,-219,-197,-190,-181,-29984,-29985]} 1. Nf3 {[%emt 0:00:33]} c5 {[%emt 0:00:35]} 2. c4 {[%emt 0:00:21]} Nc6 {[%emt 0:00:13]} 3. Nc3 {[%emt 0:00:23]} Nf6 {[%emt 0:00:06]} 4. e3 {[%emt 0:02:02]} e6 {[%emt 0:00:07]} 5. d4 {[%emt 0:00:23]} d5 {[%emt 0:00:08]} 6. a3 {[%emt 0:00:08]} a6 {[%emt 0:00:03]} 7. dxc5 {[%emt 0:00:05]} Bxc5 {[%emt 0:00:04]} 8. b4 {[%emt 0:00:06]} Bd6 {[%emt 0:00:02]} 9. cxd5 {[%emt 0:00:15]} exd5 {[%emt 0:00:05]} 10. Bb2 {[%emt 0:00:14]} O-O {[%emt 0:00:06]} 11. Be2 {[%emt 0:00:08]} Be6 {[%emt 0:00:04]} 12. O-O {[%emt 0:00:06]} Qe7 {[%emt 0:00:02] D40: Queen's Gambit Declined: Semi-Tarrasch with 5 e3.} 13. Rc1 {[%emt 0:03:54]} (13. Na4 {is more complex.} Ne4 14. Rc1 Rac8 15. Nd4) 13... a5 {[%emt 0:00:10]} 14. b5 {[%emt 0:03:13]} Ne5 {[%emt 0:00:05] [#] The position is equal.} 15. Nxe5 $146 {[%emt 0:05:50]} ({Predecessor:} 15. b6 Bxa3 16. Bxa3 Nxf3+ 17. Bxf3 Qxa3 18. Nb5 Qb2 19. Rb1 Qe5 20. Nc7 Rad8 21. Rb5 a4 22. Qa1 Qxa1 23. Rxa1 Rd6 24. Rb4 Nd7 25. Rbxa4 {½-½ Woelfelschneider,P (2344)-Molzahn,N (2286) GER-ch51 V05 email 2019}) 15... Bxe5 {[%emt 0:00:07]} 16. Bf3 {[%emt 0:05:18] [#]} Ne4 $1 {[%emt 0:06:02]} 17. Qc2 {[%emt 0:12:13]} ({Of course not} 17. Nxd5 Bxd5 18. Qxd5 Bxb2 $17) 17... f5 {[%emt 0:06:59]} ({Much less strong is} 17... Qh4 18. g3 (18. Nxe4 $2 Qxh2#) 18... Qe7 19. Nxe4 dxe4 20. Bxe4 $14) 18. Rfd1 $2 {[%emt 0:03:49] [#]} (18. Na4 $11 Rac8 19. Qd3 Bxb2 20. Nxb2) 18... Qf7 $2 {[%emt 0:09:16]} (18... Rac8 $1 $19 19. Bxe4 dxe4) 19. Ne2 $14 {[%emt 0:16:24]} Rac8 {[%emt 0:14:01]} (19... Rfc8 $14 20. Qb1 Rxc1 21. Qxc1 Bd6) 20. Qb1 {[%emt 0:02:27]} Qf6 {[%emt 0:00:31]} 21. Bxe5 {[%emt 0:05:13]} Qxe5 {[%emt 0:01:01]} 22. Qa1 {[%emt 0:03:12]} (22. b6 $14) 22... Qxa1 $11 {[%emt 0:05:08]} 23. Rxa1 {[%emt 0:00:11]} Rc5 {[%emt 0:01:30]} 24. Rac1 {[%emt 0:04:58]} Rfc8 {[%emt 0:01:00]} 25. Rxc5 {[%emt 0:05:45]} Rxc5 {[%emt 0:00:07]} 26. Rc1 {[%emt 0:04:23]} (26. Kf1 $11 {keeps the balance.}) 26... Rxb5 {[%emt 0:01:27]} ({Black should try} 26... Rxc1+ $17 27. Nxc1 b6) 27. Nd4 {[%emt 0:00:51][%csl LRb5,LRe6]} Rb6 {[%emt 0:00:05][%cal Bb5b6,Bb6e6,Be6e4][%mdl 32]} 28. Nxe6 {[%emt 0:00:59]} Rxe6 {[%emt 0:00:25]} 29. Bxe4 {[%emt 0:03:16]} Rxe4 {[%emt 0:01:56][%mdl 4096] Endgame KR-KR} 30. Rb1 {[%emt 0:01:49]} (30. Rc8+ $11 Kf7 31. Rc7+ Kg6 32. Rxb7) 30... a4 {[%emt 0:07:17]} (30... Ra4 $15) 31. Rxb7 {[%emt 0:02:21]} d4 {[%emt 0:00:06]} 32. Rb4 {[%emt 0:02:13]} d3 {[%emt 0:00:50]} 33. Rxe4 {[%emt 0:00:32]} fxe4 {[%emt 0:00:08] KP-KP} 34. Kf1 {[%emt 0:00:07]} Kf7 {[%emt 0:00:05]} 35. f3 {[%emt 0:00:49]} Ke6 {[%emt 0:08:20]} (35... exf3 36. gxf3 Ke6 37. Ke1 $18) 36. fxe4 $2 {[%emt 0:01:49][%mdl 8192]} (36. Kf2 $11 {and White stays safe.}) 36... Ke5 {[%emt 0:00:10][%cal Oh7h5]} 37. Ke1 {[%emt 0:00:17]} Kxe4 {[%emt 0:00:05]} 38. Kd2 {[%emt 0:00:08]} h5 {[%emt 0:00:15]} 39. h4 {[%emt 0:08:16]} g6 {[%emt 0:00:04]} 40. g3 {[%emt 0:00:10] Dodges g5} Kf3 {[%emt 0:00:04]} 41. Kxd3 {[%emt 0:00:09]} Kxg3 {[%emt 0:00:03]} 42. e4 {[%emt 0:00:31] White threatens e5 and mate.} Kxh4 {[%emt 0:00:11]} 43. e5 {[%emt 0:01:16] White wants to mate with e6.} Kg5 {[%emt 0:00:19]} 44. Kd4 {[%emt 0:00:47]} h4 {[%emt 0:00:50] ( -> ...h3)} 45. e6 $2 {[%emt 0:00:56]} (45. Kc5 $19) 45... Kf6 {[%emt 0:00:07] Weighted Error Value: White=0.50/Black=0.22 (precise)} 0-1

[Event "SixDays Budapest March IM 2023"]
[Site "Budapest"]
[Date "2023.03.28"]
[Round "7.2"]
[White "Szeberenyi, Adam"]
[Black "Horvath, David"]
[Result "1/2-1/2"]
[ECO "A05"]
[WhiteElo "2338"]
[BlackElo "2380"]
[Annotator "TA"]
[PlyCount "39"]
[EventDate "2023.03.24"]
[EventType "tourn"]
[EventCountry "HUN"]
[SourceTitle "playchess.com"]
[Source "ChessBase"]
[SourceQuality "1"]
[TimeControl "5400+30"]

{[%evp 22,24,47,38,86]} 1. Nf3 {[%emt 0:00:34]} Nf6 {[%emt 0:00:35]} 2. c4 {[%emt 0:00:04]} e6 {[%emt 0:00:06]} 3. Nc3 {[%emt 0:00:11]} d5 {[%emt 0:00:04]} 4. cxd5 {[%emt 0:00:10]} exd5 {[%emt 0:00:06]} 5. d4 {[%emt 0:00:04]} c6 {[%emt 0:00:09]} 6. Bg5 {[%emt 0:00:05]} Be7 {[%emt 0:00:03]} 7. e3 {[%emt 0:00:06]} O-O {[%emt 0:00:05]} 8. Qc2 {[%emt 0:00:08]} Nbd7 {[%emt 0:00:04][%cal Bb8d7,Bd7f8,Bf8g6][%mdl 32]} 9. Bd3 {[%emt 0:00:05]} Re8 {[%emt 0:00:08]} 10. O-O {[%emt 0:00:06]} Nf8 {[%emt 0:00:05]} 11. h3 {[%emt 0:00:07]} Ng6 {[%emt 0:00:07]} 12. Ne5 {[%emt 0:00:15]} Bd6 {[%emt 0:00:12] [#]  D36: Queen's Gambit Declined: Exchange Variation: Main line (5 Bg5 c6 6 Qc2).} (12... Nxe5 $14 {should be considered.} 13. dxe5 Nd7 14. Bxe7 (14. Bxh7+ Kh8 $11) 14... Qxe7) {Predecessor:} 13. f4 $146 a5 14. Rae1 Bb4 15. a3 Bxc3 16. bxc3 Qd6 17. Bxf6 Qxf6 18. c4 b6 19. cxd5 cxd5 20. Bb5 {½-½ Kreutzmann,D (1994)-Deveci,S (1943) SUI-ch HT1 118th 2018 (5)} 1/2-1/2